bitfinex-derivatives/quotes_ETHF0:USTF0_20250123
["timestamp","ask_amount","ask_price","bid_price","bid_amount"]
[1737663657361,3.2078,3250.4,3250.1,3.17e-06]
[1737663657554,3.2078,3250.2,3250.1,3.17e-06]
[1737663657953,0.00461317,3250.7,3250.1,3.17e-06]
[1737663658155,0.61523,3250.6,3250.1,3.17e-06]
[1737663658360,3.2078,3250.2,3250.1,3.17e-06]
[1737663658660,0.00461317,3250.7,3250.1,3.17e-06]
[1737663659049,3.2078,3250.2,3250.1,3.17e-06]
[1737663659257,0.6153,3250.3,3250.1,3.17e-06]
[1737663659561,0.00461317,3250.7,3250.1,3.17e-06]
[1737663659562,0.61527,3250.5,3250.1,3.17e-06]
[1737663659857,3.21241317,3250.7,3250.1,3.17e-06]
[1737663660058,0.61531,3250.2,3250.1,3.17e-06]
[1737663660266,8.82311,3250.2,3250.1,3.17e-06]
[1737663660561,3.2078,3249.3,3247.0,3.2078]
[1737663660762,3.2078,3249.3,3244.4,3.95420611]
[1737663660763,3.2078,3247.9,3246.5,3.2078]
[1737663660950,4.9617,3249.2,3247.4,3.2078]
[1737663661156,8.5404,3250.1,3248.4,3.2078]
[1737663661358,0.61546,3249.5,3248.8,3.2078]
[1737663661558,0.61555,3249.0,3247.8,0.61575]
[1737663661759,0.00461317,3249.6,3248.9,0.00461317]
[1737663661957,0.61548,3249.3,3248.9,0.00461317]
[1737663662159,0.00461317,3249.6,3248.9,0.00461317]
[1737663662363,0.61529,3250.3,3249.4,3.2078]
[1737663662564,3.2078,3250.1,3249.0,3.2078]
[1737663662861,3.2078,3249.3,3248.9,0.00461317]
[1737663663057,0.6155,3249.2,3248.9,0.00461317]
[1737663663361,3.2078,3250.1,3248.9,3.21241317]
[1737663663564,3.2078,3250.1,3250.0,40.8]
[1737663663761,0.61554,3249.0,3248.9,0.00461317]
[1737663663958,0.00461317,3249.4,3248.9,0.00461317]
[1737663664161,3.2078,3250.8,3249.7,0.61539]
[1737663664356,3.2078,3252.1,3250.5,3.2078]
[1737663664560,3.2078,3251.4,3249.9,3.2078]
[1737663664759,3.2078,3250.3,3249.5,3.2078]
[1737663664961,3.2078,3250.3,3248.0,5.1819]
[1737663664962,0.61555,3249.0,3248.0,3.2078]
[1737663665260,3.2078,3248.9,3247.6,3.2078]
[1737663665456,3.2078,3248.7,3247.6,3.2078]
[1737663665656,0.00459862,3248.8,3247.6,3.2078]
[1737663665857,0.61573,3248.0,3247.9,0.00461317]
[1737663666365,0.61588,3247.2,3246.8,3.2078]
[1737663666566,0.00459862,3248.8,3247.2,3.2078]
[1737663666767,0.00459862,3248.8,3246.4,0.61396879]
[1737663666768,0.00459862,3248.8,3248.5,3.2078]
[1737663666962,3.2078,3249.1,3247.5,3.2078]
[1737663667161,0.6156,3248.7,3248.3,3.2078]
[1737663667365,0.6156,3248.7,3247.8,0.61576]
[1737663667366,3.2078,3250.1,3248.0,3.2078]
[1737663667563,5.1562,3250.5,3249.5,3.2078]
[1737663667861,3.2078,3250.3,3249.2,3.2078]
[1737663668056,3.2078,3250.2,3249.1,40.8]
[1737663668252,3.2078,3250.7,3249.1,40.8]
[1737663668458,0.00461316,3250.3,3249.4,3.2078]
[1737663668657,0.00461316,3250.3,3250.2,3.2078]
[1737663668875,0.61990316,3250.3,3250.2,40.8]
[1737663669059,0.61541,3249.7,3249.6,0.00461317]
[1737663669361,0.00461316,3250.3,3249.6,0.00461317]
[1737663669565,0.61541,3249.7,3249.6,0.00461317]
[1737663669864,0.61541,3249.7,3249.6,3.17e-06]
[1737663670072,5.0,3249.7,3248.1,3.2078]
[1737663670368,1.53896,3248.8,3247.2,3.2078]
[1737663670564,0.61586,3247.3,3247.2,3.2078]
[1737663670769,3.2078,3248.0,3246.6,3.2078]
[1737663670966,1.53991,3246.8,3245.4,3.2078]
[1737663671263,3.2078,3245.8,3244.5,3.2078]
[1737663671457,3.2078,3245.9,3243.8,3.2078]
[1737663671661,0.61645,3244.2,3243.8,3.2078]
[1737663671861,0.61645,3244.3,3243.3,4.8852]
[1737663672060,1.54017,3246.3,3243.3,4.8852]
[1737663672061,3.01358021,3245.4,3244.8,9.2e-07]
[1737663672258,0.61622,3245.4,3244.8,9.2e-07]
[1737663672458,0.61632,3244.9,3244.8,9.2e-07]
[1737663672866,5.61632,3244.9,3244.8,9.2e-07]
[1737663673466,0.61632,3244.9,3244.8,9.2e-07]
[1737663673764,11.22138021,3244.9,3243.1,3.2078]
[1737663673965,11.22138021,3244.9,3242.6,5.1861]
[1737663673966,3.2078,3244.1,3242.6,3.2078]
[1737663674171,3.2078,3242.9,3242.1,3.2078]
[1737663674366,3.01358021,3244.1,3242.3,3.2078]
[1737663674664,0.61666,3243.1,3242.1,3.2078]
[1737663674873,3.2078,3243.9,3242.1,3.2078]
[1737663675065,3.2078,3243.9,3241.3,4.9128]
[1737663675066,0.00462092,3242.9,3242.5,3.2078]
[1737663675259,0.00462092,3242.9,3242.8,3.2078]
[1737663675461,0.61627,3245.2,3243.2,3.2078]
[1737663675664,5.2746,3246.7,3245.1,41.41627]
[1737663675870,0.61606,3246.3,3245.2,3.2078]
[1737663676167,5.2746,3246.7,3245.2,3.2078]
[1737663676356,5.2746,3246.7,3245.1,40.8]
[1737663676357,5.2746,3246.7,3245.4,3.2078]
[1737663676561,3.2078,3246.6,3245.1,40.8]
[1737663676763,0.00462092,3246.3,3245.6,0.00462092]
[1737663677064,0.00462092,3246.3,3245.9,3.2078]
[1737663677265,0.00462092,3246.3,3245.6,3.21242092]
[1737663677465,0.00462092,3246.3,3245.8,0.61614]
[1737663677670,0.00462092,3246.3,3246.2,3.82387]
[1737663677873,0.00462092,3246.3,3245.6,0.00462092]
[1737663677874,0.00462092,3246.3,3245.6,3.21242092]
[1737663678071,0.00462092,3246.3,3245.6,0.00462092]
[1737663678263,0.61616,3245.7,3245.6,0.00462092]
[1737663678459,0.61616,3245.7,3245.6,9.2e-07]
[1737663678665,0.00462092,3246.3,3245.6,9.2e-07]
[1737663678869,0.00462092,3246.3,3246.2,3.2078]
[1737663679169,3.2078,3248.5,3246.2,3.2078]
[1737663679372,3.2078,3249.5,3248.1,3.2078]
[1737663679569,3.2078,3250.0,3248.1,3.2078]
[1737663679764,0.06154035,3249.9,3248.5,3.2078]
[1737663679965,3.2078,3249.7,3248.5,3.2078]
[1737663680268,3.2078,3248.6,3247.9,3.2078]
[1737663680470,3.2078,3249.0,3247.0,3.2078]
[1737663680769,0.06155929,3248.9,3247.0,3.2078]
[1737663680969,0.06155929,3248.9,3246.1,4.9692]
[1737663680970,0.06155929,3248.9,3247.4,3.2078]
[1737663681468,3.2078,3248.3,3247.4,3.2078]
[1737663681671,0.61583,3247.5,3246.2,3.2078]
[1737663681860,3.2078,3247.4,3246.7,3.2078]
[1737663682172,3.2078,3247.4,3247.1,0.00462092]
[1737663682477,3.2078,3248.2,3247.1,0.00462092]
[1737663682665,0.06157445,3248.1,3247.1,3.21242092]
[1737663682864,3.2078,3248.0,3247.1,0.00462092]
[1737663683061,0.06157825,3247.9,3247.2,3.2078]
[1737663683266,0.06157825,3247.9,3247.7,3.2078]
[1737663683666,0.00462092,3248.5,3247.7,3.2078]
[1737663684068,3.2078,3248.2,3247.7,3.2078]
[1737663684465,0.61576,3247.8,3247.7,3.2078]
[1737663684673,0.00462092,3248.5,3247.7,3.2078]
[1737663684971,0.00462092,3248.5,3247.7,44.0078]
[1737663685165,0.61569,3248.2,3247.7,3.2078]
[1737663685365,0.61576,3247.8,3247.7,3.2078]
[1737663685563,0.00462092,3248.5,3247.7,3.2078]
[1737663685762,0.00462092,3248.5,3247.6,3.2078]
[1737663685968,0.00462092,3248.5,3248.4,3.82345]
[1737663686167,3.2078,3250.7,3248.4,3.2078]
[1737663686472,3.2078,3250.7,3249.0,3.2078]
[1737663687070,0.61533,3250.2,3249.3,3.2078]
[1737663687376,0.61554,3249.1,3248.7,3.2078]
[1737663687565,0.00462092,3250.1,3249.4,0.00462092]
[1737663688273,0.61544,3249.5,3249.4,0.00462092]
[1737663688474,0.00462092,3250.1,3249.4,0.00462092]
[1737663688671,0.61544,3249.5,3249.4,0.00462092]
[1737663689274,0.00462092,3250.1,3249.4,3.21242092]
[1737663689476,3.01358021,3249.6,3249.4,0.00462092]
[1737663689670,0.61544,3249.5,3249.4,9.2e-07]
[1737663690072,8.62902021,3249.5,3249.4,9.2e-07]
[1737663690262,0.61544,3249.5,3249.4,9.2e-07]
[1737663690572,0.00462092,3250.1,3249.5,0.61544]
[1737663690868,3.01358021,3251.9,3250.0,3.2078]
[1737663691074,3.01358021,3251.9,3250.6,3.2078]
[1737663691271,3.2078,3252.7,3251.5,3.2078]
[1737663691471,0.61482,3252.8,3252.6,3.2078]
[1737663691666,3.2078,3253.4,3252.2,3.2078]
[1737663691667,0.61484,3252.7,3252.2,3.2078]
[1737663691866,5.1567,3254.0,3252.2,3.2078]
[1737663692169,3.2078,3254.2,3251.0,3.01358021]
[1737663692170,3.01358021,3254.3,3252.8,3.2078]
[1737663692574,3.01358021,3253.7,3252.2,3.2078]
[1737663692769,1.5367,3253.6,3252.1,0.0046136]
[1737663692971,3.01358021,3253.1,3252.1,0.0046136]
[1737663693173,0.61493,3252.2,3252.1,0.0046136]
[1737663693365,0.61493,3252.2,3251.3,0.6151]
[1737663693366,3.01358021,3252.5,3251.2,3.2078]
[1737663693573,0.6151,3251.3,3251.2,3.2078]
[1737663693775,6.22138021,3253.1,3251.2,3.2078]
[1737663693980,3.2078,3252.7,3251.2,3.2078]
[1737663694278,0.61515,3251.1,3250.4,3.2078]
[1737663694575,0.61512,3251.2,3250.4,3.2078]
[1737663694773,3.01358021,3250.7,3249.2,3.2078]
[1737663695276,0.61525,3250.6,3250.0,3.2078]
[1737663695466,3.01358021,3251.9,3250.0,3.2078]
[1737663695667,0.0046136,3250.3,3250.0,3.2078]
[1737663695867,0.0046136,3250.3,3250.0,3.82315]
[1737663696071,0.0046136,3250.3,3250.0,3.2078]
[1737663696472,0.0046136,3250.3,3249.6,0.0046136]
[1737663696677,0.0046136,3250.3,3249.6,3.6e-06]
[1737663696678,0.6154,3249.7,3249.6,3.6e-06]
[1737663697073,0.0046136,3250.3,3249.6,5.0000036]
[1737663697380,0.61537,3249.9,3249.8,3.2078]
[1737663697670,0.0046136,3250.3,3249.6,3.6e-06]
[1737663697877,0.0046136,3250.3,3249.8,3.2078]
[1737663698182,3.2078,3252.7,3250.6,3.2078]
[1737663698374,3.01358021,3253.7,3249.8,3.01358021]
[1737663698375,3.01358021,3253.7,3252.2,3.2078]
[1737663698580,3.2078,3254.3,3252.9,3.2078]
[1737663698876,0.61467,3253.6,3252.8,0.6148]
[1737663699069,3.2078,3254.8,3251.7,3.01358021]
[1737663699070,3.2078,3254.8,3253.2,3.2078]
[1737663699266,3.2078,3255.4,3253.6,3.2078]
[1737663699464,0.61458,3254.1,3253.6,3.2078]
[1737663699665,6.22138021,3255.0,3253.6,3.2078]
[1737663699866,0.61471,3253.4,3253.0,3.2078]
[1737663700070,0.61478,3253.0,3252.9,0.0046136]
[1737663700380,3.01358021,3253.8,3252.9,3.6e-06]
[1737663700568,3.2078,3254.2,3252.9,3.6e-06]
[1737663700774,0.61478,3253.0,3252.9,3.6e-06]
[1737663700968,3.2078,3254.1,3252.9,3.6e-06]
[1737663701173,0.61457,3254.2,3253.3,0.61471]
[1737663701368,0.61457,3254.2,3253.4,44.0078]
[1737663701575,3.2078,3255.1,3254.1,3.2078]
[1737663701780,3.2078,3255.5,3254.3,3.2078]
[1737663701977,0.61452,3254.4,3254.3,3.2078]
[1737663702276,5.0046136,3254.7,3253.1,3.2078]
[1737663702484,0.61474,3253.2,3253.1,3.2078]
[1737663702675,0.0046136,3254.7,3253.1,3.2078]
[1737663702979,0.0046136,3254.7,3254.1,3.2078]
[1737663703181,0.0046136,3254.7,3254.6,3.2078]
[1737663703380,0.0046136,3254.7,3254.6,3.82228]
[1737663703680,0.0046136,3254.7,3254.6,3.2078]
[1737663703883,6.22138021,3258.0,3254.6,11.22138021]
[1737663704085,0.06140243,3257.2,3255.3,3.01358021]
[1737663704288,0.06140243,3257.2,3257.1,3.2078]
[1737663704580,0.06140243,3257.2,3256.2,3.2078]
[1737663705082,3.2078,3257.7,3256.2,3.2078]
[1737663705282,0.00460596,3257.0,3256.4,0.00460596]
[1737663705484,0.61412,3256.5,3256.4,5.96e-06]
[1737663705684,3.2078,3256.8,3254.2,3.2078]
[1737663705886,3.01358021,3255.5,3254.2,3.2078]
[1737663706180,0.61433,3255.4,3254.2,3.2078]
[1737663706390,3.2078,3255.1,3253.6,3.2078]
[1737663706581,0.61441,3255.0,3254.1,3.2078]
[1737663706776,3.2078,3254.5,3253.2,0.42627876]
[1737663707087,3.2078,3253.7,3253.0,3.2078]
[1737663707282,0.61462,3253.9,3253.6,3.2078]
[1737663707483,3.2078,3254.8,3252.9,3.2078]
[1737663707788,0.61455,3254.2,3253.7,3.2078]
[1737663707978,3.2078,3254.9,3253.5,0.00460596]
[1737663708179,0.00460596,3254.2,3253.5,0.00460596]
[1737663708382,3.2078,3253.6,3253.5,5.96e-06]
[1737663708592,3.21240596,3254.2,3253.5,5.96e-06]
[1737663708882,0.00460596,3254.2,3253.5,5.96e-06]
[1737663709789,3.2078,3254.1,3253.5,5.96e-06]
[1737663709990,0.61466,3253.7,3253.5,5.96e-06]
[1737663710487,3.2078,3253.6,3253.5,5.96e-06]
[1737663710687,5.61466,3253.7,3253.5,5.96e-06]
[1737663710876,3.01358021,3253.6,3253.5,5.96e-06]
[1737663711082,3.62825021,3253.6,3253.5,5.96e-06]
[1737663711283,3.2078,3253.4,3251.2,0.06151574]
[1737663711482,3.01358021,3252.3,3251.2,0.06151574]
[1737663711684,0.6151,3251.3,3251.2,0.06151574]
[1737663711981,0.61501,3251.8,3251.2,5.74e-06]
[1737663712184,0.6151,3251.3,3251.2,5.74e-06]
[1737663712386,0.61508,3251.5,3249.7,3.2078]
[1737663712585,0.61508,3251.5,3251.2,0.0046136]
[1737663712790,6.22138021,3251.6,3251.2,0.0046136]
[1737663712993,0.6151,3251.3,3251.2,0.0046136]
[1737663713183,11.22138021,3251.6,3251.2,0.0046136]
[1737663713486,0.0046136,3251.8,3251.2,0.0046136]
[1737663713689,0.0046136,3251.8,3251.2,3.2124136]
[1737663713887,3.2078,3251.6,3251.2,0.0046136]
[1737663714188,0.0046136,3251.8,3251.2,0.0046136]
[1737663714484,0.0046136,3251.8,3251.6,3.2078]
[1737663715085,0.0046136,3251.8,3251.2,3.2124136]
[1737663715487,0.61476,3253.1,3251.4,0.61507]
[1737663715685,0.61476,3253.1,3251.2,3.2124136]
[1737663715686,3.2078,3253.3,3251.7,3.2078]
[1737663715885,5.1775,3254.6,3253.2,0.61474]
[1737663716083,5.065,3255.2,3254.1,3.2078]
[1737663716388,3.2078,3256.0,3254.5,3.2078]
[1737663716594,3.01358021,3255.8,3254.5,3.2078]
[1737663716893,0.0046136,3255.0,3254.7,3.2078]
[1737663717193,0.0046136,3255.0,3254.9,3.82222]
[1737663717391,3.2078,3256.3,3254.9,3.2078]
[1737663717591,6.22138021,3256.4,3254.3,3.2124136]
[1737663717792,3.2078,3255.4,3254.8,3.2078]
[1737663717992,0.61412,3256.5,3254.8,3.82224]
[1737663718295,3.2078,3256.3,3254.8,44.0078]
[1737663718495,0.61436,3255.3,3254.4,3.2078]
[1737663718688,0.61436,3255.2,3254.4,3.2078]
[1737663718889,0.61452,3254.4,3254.3,0.0046136]
[1737663719393,4.8621,3255.1,3254.2,3.2078]
[1737663719599,0.61438,3255.2,3253.6,3.82246]
[1737663719897,3.2078,3255.3,3253.3,3.2078]
[1737663720092,3.2078,3254.8,3253.3,3.2078]
[1737663720292,3.2078,3254.0,3253.3,3.2078]
[1737663720491,5.2073,3255.1,3253.9,3.2078]
[1737663720690,0.0046136,3254.4,3253.7,0.0046136]
[1737663720889,5.2073,3257.4,3255.0,3.2078]
[1737663721193,0.61372,3258.7,3257.3,3.82176]
[1737663721397,0.61378,3258.3,3258.1,3.2078]
[1737663721595,3.2078,3259.6,3257.8,3.2078]
[1737663721786,3.2078,3258.4,3257.7,3.2078]
[1737663721992,5.2073,3259.5,3258.1,3.2078]
[1737663722193,5.2073,3259.5,3259.0,3.2078]
[1737663722597,5.2073,3259.5,3258.6,3.2078]
[1737663722896,0.00460574,3259.6,3259.0,3.2078]
[1737663723092,0.00460574,3259.6,3259.5,3.2078]
[1737663723892,0.00460574,3259.6,3259.1,3.2078]
[1737663724094,0.00460574,3259.6,3259.5,3.2078]
[1737663724797,0.00460574,3259.6,3259.1,3.2078]
[1737663724999,0.00460574,3259.6,3259.5,3.2078]
[1737663725295,4.8609,3261.6,3259.5,3.2078]
[1737663725499,0.61921486,3260.5,3260.4,3.2078]
[1737663725686,0.00584486,3260.5,3259.8,3.2078]
[1737663725892,0.00584486,3260.5,3260.4,3.2078]
[1737663726902,0.61921486,3260.5,3260.4,3.2078]
[1737663727094,0.00584486,3260.5,3260.4,3.2078]
[1737663727491,0.00584486,3260.5,3260.1,0.00460574]
[1737663727796,0.61342,3260.2,3260.1,0.00460574]
[1737663727997,0.00584486,3260.5,3259.1,3.2078]
[1737663728199,0.00584486,3260.5,3260.0,3.2078]
[1737663728603,0.00584486,3260.5,3260.4,3.2078]
[1737663728810,0.00584486,3260.5,3260.0,3.2078]
[1737663729101,0.61343,3260.2,3259.1,3.2078]
[1737663729307,0.00584486,3260.5,3258.6,3.2078]
[1737663729503,0.00584486,3260.5,3260.0,3.2078]
[1737663729699,0.00584486,3260.5,3259.6,3.2078]
[1737663729903,0.00584486,3260.5,3260.0,3.2078]
[1737663730208,0.00584486,3260.5,3259.3,0.00460574]
[1737663730209,0.00584486,3260.5,3260.4,3.2078]
[1737663730403,0.00584486,3260.5,3260.2,3.2078]
[1737663730599,0.61292,3262.9,3260.4,3.2078]
[1737663730801,3.42734603,3263.5,3261.7,3.2078]
[1737663731111,0.21954603,3263.5,3262.3,3.2078]
[1737663731296,0.21954603,3263.5,3260.4,3.94118129]
[1737663731496,0.21954603,3263.5,3261.4,3.2078]
[1737663731497,0.61299,3262.5,3261.4,3.2078]
[1737663731702,0.21954603,3263.5,3262.3,3.2078]
[1737663731898,0.21954603,3263.5,3261.9,3.2078]
[1737663732107,0.00459834,3262.2,3261.9,3.2078]
[1737663732407,0.00459834,3262.2,3261.6,0.00459834]
[1737663732609,0.00459834,3262.2,3261.2,3.2078]
[1737663733201,3.2078,3262.0,3261.4,3.2078]
[1737663733398,0.61323,3261.3,3261.0,3.2078]
[1737663733601,0.00459834,3262.2,3261.0,3.2078]
[1737663733804,0.00459834,3262.2,3261.7,3.2078]
[1737663734007,5.29e-06,3262.4,3262.1,3.2078]
[1737663734207,5.29e-06,3262.4,3262.3,0.61303]
[1737663734409,5.29e-06,3262.4,3262.2,3.2078]
[1737663734808,5.29e-06,3262.4,3262.2,8.2078]
[1737663735006,0.21954603,3263.5,3262.3,1.53256]
[1737663735207,0.21954603,3263.5,3263.3,0.61283]
[1737663735403,0.21954603,3263.5,3263.2,3.2078]
[1737663735904,0.61248,3265.3,3264.3,0.61264]
[1737663736109,3.2078,3264.9,3263.6,3.2078]
[1737663736412,0.06125011,3265.3,3263.6,3.2078]
[1737663736605,0.06125011,3265.3,3264.0,3.2078]
[1737663737003,0.06125011,3265.3,3264.8,3.2078]
[1737663737209,0.06125011,3265.3,3264.5,3.2078]
[1737663737512,0.00456204,3265.0,3264.9,3.2078]
[1737663737712,0.00456204,3265.0,3264.9,3.82034]
[1737663738011,1.53018,3267.5,3265.5,0.61241]
[1737663738213,0.06122386,3266.7,3265.7,3.2078]
[1737663738515,0.06122386,3266.7,3266.6,3.2078]
[1737663738808,0.06122386,3266.7,3266.2,3.2078]
[1737663739316,0.06122386,3266.7,3265.8,3.2078]
[1737663739510,0.06122386,3266.7,3266.2,3.2078]
[1737663739709,0.06122386,3266.7,3266.6,3.2078]
[1737663740017,0.06122386,3266.7,3266.6,0.61222]
[1737663740416,0.06122386,3266.7,3266.5,3.2078]
[1737663740912,3.2078,3266.6,3265.6,0.00459834]
[1737663741217,3.2078,3265.7,3264.3,3.2078]
[1737663741511,3.2078,3265.2,3263.8,3.2078]
[1737663741811,3.2078,3265.2,3263.4,3.2078]
[1737663742124,3.2078,3264.5,3262.7,3.2078]
[1737663742307,0.61252,3265.0,3263.3,0.61283]
[1737663742613,3.2078,3264.2,3264.0,0.00459834]
[1737663742811,0.61269,3264.1,3264.0,8.34e-06]
[1737663743209,0.00459834,3264.6,3264.0,8.34e-06]
[1737663743517,8.3162,3266.6,3264.3,3.2078]
[1737663743719,0.61224,3266.5,3265.4,0.61243]
[1737663744012,3.2078,3266.5,3264.1,8.3174]
[1737663744209,3.2078,3266.6,3264.6,3.2078]
[1737663744409,3.2078,3266.6,3265.1,3.2078]
[1737663744811,3.2078,3266.1,3264.6,3.2078]
[1737663745110,0.61241,3265.6,3265.5,8.34e-06]
[1737663745310,3.2078,3265.6,3264.1,3.2078]
[1737663745606,0.61241,3265.6,3264.6,0.61259]
[1737663745810,0.00459,3266.2,3264.4,3.2078]
[1737663746006,0.61241,3265.7,3264.8,3.2078]
[1737663746213,3.2078,3266.1,3264.4,3.2078]
[1737663746410,0.00459,3266.2,3264.4,3.2078]
[1737663746619,0.61256,3264.9,3264.4,3.2078]
[1737663746916,3.2078,3264.5,3263.5,0.6128]
[1737663747119,3.2078,3264.9,3263.0,5.0076]
[1737663747315,3.2078,3263.6,3263.0,5.0076]
[1737663747510,0.61292,3262.9,3262.4,3.2078]
[1737663747711,3.2078,3263.5,3263.0,0.00459834]
[1737663748014,0.61288,3263.1,3263.0,0.00459834]
[1737663748321,0.61288,3263.1,3263.0,8.34e-06]
[1737663748614,3.82068,3263.1,3263.0,8.34e-06]
[1737663748812,8.82068,3263.1,3263.0,8.34e-06]
[1737663749114,3.82068,3263.1,3263.0,8.34e-06]
[1737663749414,8.82068,3263.1,3263.0,8.34e-06]
[1737663749624,8.2078,3263.1,3261.5,5.0076]
[1737663749820,3.2078,3261.6,3260.4,4.8774]
[1737663750018,3.2078,3262.2,3260.4,4.8774]
[1737663750321,3.2078,3263.1,3261.6,3.2078]
[1737663750515,3.2078,3264.2,3262.5,3.2078]
[1737663750715,0.61263,3264.5,3262.9,3.82071]
[1737663750917,0.61263,3264.5,3263.3,0.61283]
[1737663751118,3.2078,3264.6,3262.9,3.2078]
[1737663751319,0.00459834,3264.0,3262.9,3.2078]
[1737663751518,0.00459834,3264.0,3263.8,0.61273]
[1737663751721,0.00459834,3264.0,3263.9,0.61273]
[1737663751912,0.00459834,3264.0,3263.2,3.2078]
[1737663752113,0.00459834,3264.0,3263.6,3.2078]
[1737663752420,3.2078,3263.7,3262.8,3.2078]
[1737663752724,0.00459834,3264.0,3262.8,3.2078]
[1737663753218,0.00459834,3264.0,3263.7,0.61275]
[1737663753416,0.00459834,3264.0,3262.2,1.5326]
[1737663753417,0.00459834,3264.0,3263.2,3.2078]
[1737663753617,0.00459834,3264.0,3262.8,3.2078]
[1737663754024,3.2078,3263.4,3262.4,3.2078]
[1737663754324,0.61295,3262.7,3262.4,3.2078]
[1737663754524,3.2078,3262.8,3261.2,3.2078]
[1737663754713,4.51625701,3263.7,3261.2,3.2078]
[1737663754714,3.2078,3263.0,3261.2,3.2078]
[1737663755117,3.2078,3263.0,3261.6,3.2078]
[1737663755314,3.2078,3263.0,3262.5,0.61297]
[1737663755520,3.2078,3263.2,3262.0,0.00459834]
[1737663755823,3.2078,3263.3,3262.0,0.00459834]
[1737663756117,3.2078,3262.5,3262.0,0.00459834]
[1737663756318,0.61307,3262.1,3262.0,0.00459834]
[1737663756521,3.82087,3262.1,3262.0,0.00459834]
[1737663756820,3.2078,3262.7,3262.0,0.00459834]
[1737663757126,3.82087,3262.1,3262.0,0.00459834]
[1737663757419,3.2078,3262.9,3262.0,0.00459834]
[1737663757620,3.82087,3262.1,3262.0,8.34e-06]
[1737663757815,3.2078,3262.9,3262.0,8.34e-06]
[1737663758218,3.82087,3262.1,3262.0,8.34e-06]
[1737663758629,3.2078,3263.1,3262.0,8.34e-06]
[1737663758819,0.61281,3263.5,3262.0,8.34e-06]
[1737663759016,5.0859,3263.6,3262.0,8.34e-06]
[1737663759213,3.2078,3263.3,3262.0,8.34e-06]
[1737663759425,0.61307,3262.1,3262.0,8.34e-06]
[1737663759621,3.2078,3263.1,3262.0,8.34e-06]
[1737663759819,0.61307,3262.1,3262.0,8.34e-06]
[1737663760026,8.3168,3263.1,3262.0,8.34e-06]
[1737663760222,0.61305,3262.2,3262.0,8.34e-06]
[1737663760425,0.61307,3262.1,3262.0,8.34e-06]
[1737663760822,0.61302,3262.4,3262.0,8.34e-06]
[1737663761028,3.2078,3263.2,3262.0,8.34e-06]
[1737663761222,0.00693311,3262.1,3262.0,8.34e-06]
[1737663761430,0.00693311,3262.1,3262.0,3.20780834]
[1737663761625,5.62000311,3262.1,3262.0,8.34e-06]
[1737663762022,0.61311,3261.9,3260.1,0.61343]
[1737663762326,3.2078,3261.1,3259.9,3.2078]
[1737663762632,0.61344,3260.2,3259.9,3.2078]
[1737663762926,3.2078,3260.6,3259.9,2.40454]
[1737663762927,0.61346,3260.0,3259.9,2.40454]
[1737663763126,3.2078,3260.0,3257.9,3.2078]
[1737663763431,0.61378,3258.3,3257.5,3.2078]
[1737663763625,2.59165,3258.3,3257.6,1.53479]
[1737663763824,3.2078,3260.7,3258.8,1.53419]
[1737663764031,0.61337,3260.5,3259.9,3.2078]
[1737663764228,3.2078,3260.7,3259.9,3.2078]
[1737663764531,0.00459834,3260.5,3259.2,3.2078]
[1737663764827,3.21239834,3260.5,3259.6,3.2078]
[1737663765025,0.00459834,3260.5,3260.4,0.61339]
[1737663765327,3.21239834,3260.5,3259.7,3.2078]
[1737663765531,3.21239834,3260.5,3258.6,0.00459834]
[1737663765730,0.61353,3259.7,3258.7,3.82149]
[1737663766028,0.00459834,3260.5,3259.3,3.2078]
[1737663766235,0.00459834,3260.5,3259.6,0.61353]
[1737663766430,0.00459834,3260.5,3259.3,3.2078]
[1737663766626,0.00459834,3260.5,3259.9,3.2078]
[1737663766822,0.00459834,3260.5,3259.9,0.61348]
[1737663767030,0.00459834,3260.5,3259.5,3.2078]
[1737663767228,0.00459834,3260.5,3258.6,0.00459834]
[1737663767229,0.61367,3258.9,3258.6,0.00459834]
[1737663767431,3.82151,3258.7,3258.6,0.00459834]
[1737663767930,3.2078,3259.8,3258.6,0.00459834]
[1737663768134,2.99389385,3260.9,3258.6,0.00459834]
[1737663768135,3.2078,3260.3,3258.6,3.21239834]
[1737663768332,0.61342,3260.2,3259.5,3.2078]
[1737663768527,3.2078,3260.3,3258.6,0.00459834]
[1737663768727,8.51279834,3260.5,3259.0,3.2078]
[1737663768923,0.00459834,3260.5,3260.3,3.2078]
[1737663769128,8.34e-06,3260.5,3260.4,0.61339]
[1737663769626,8.34e-06,3260.5,3260.4,5.61339]
[1737663769936,3.2078,3263.0,3260.4,45.8]
[1737663770125,3.2078,3264.2,3262.0,0.61308]
[1737663770327,3.2078,3264.3,3262.0,3.2078]
[1737663770522,3.2078,3263.7,3261.9,3.2078]
[1737663770728,2.99389385,3264.8,3262.3,3.2078]
[1737663770729,3.2078,3264.5,3262.3,3.2078]
[1737663771038,0.61268,3264.2,3263.1,0.61286]
[1737663771331,0.00459834,3263.7,3263.1,0.00459834]
[1737663771729,0.61283,3263.4,3263.1,0.00459834]
[1737663771938,3.2078,3263.6,3263.1,0.00459834]
[1737663772332,0.00459834,3263.7,3263.2,3.2078]
[1737663772530,0.00459834,3263.7,3263.1,0.00459834]
[1737663773132,0.61286,3263.2,3263.1,0.00459834]
[1737663773332,0.00459834,3263.7,3263.1,0.00459834]
[1737663774033,0.61286,3263.2,3263.1,8.34e-06]
[1737663774233,3.2078,3263.5,3261.6,3.2078]
[1737663774433,3.2078,3263.5,3262.0,3.2078]
[1737663774741,3.2078,3263.9,3262.6,3.2078]
[1737663775042,3.82067,3263.2,3262.2,0.61304]
[1737663775337,3.2078,3263.2,3262.1,3.2078]
[1737663775542,3.2078,3263.2,3261.2,4.9049]
[1737663775543,0.00459834,3263.0,3262.4,0.00459834]
[1737663775837,16.0938,3266.0,3263.1,1.5322]
[1737663776035,3.2078,3266.2,3264.1,6.20169385]
[1737663776341,0.61238,3265.8,3264.7,0.61257]
[1737663776535,3.2078,3266.5,3264.5,3.2078]
[1737663776739,0.61246,3265.4,3264.4,0.61263]
[1737663777042,0.61249,3265.2,3264.2,3.2078]
[1737663777242,0.61261,3264.6,3264.2,3.2078]
[1737663777442,3.2078,3264.4,3263.6,3.2078]